[Event "Deloitte NED-ch Women 2019"]
[Site "Amsterdam"]
[Date "2019.07.06"]
[Round "6.5"]
[White "Lanchava, Tea"]
[Black "Ratsma, Rosa"]
[Result "0-1"]
[ECO "E14"]
[WhiteElo "2315"]
[BlackElo "2282"]
[Annotator "NA"]
[PlyCount "156"]
[EventDate "2019.07.01"]
[EventType "tourn"]
[EventCountry "NED"]
[SourceTitle "playchess.com"]
[Source "ChessBase"]
[SourceQuality "1"]
[TimeControl "40/5400+30:1800+30"]

1. c4 {[%emt 0:00:00]} Nf6 {[%emt 0:00:00]} 2. Nf3 {[%emt 0:00:14]} e6 {[%emt 0:00:04]} 3. b3 {[%emt 0:00:51]} d5 {[%emt 0:00:29]} 4. e3 {[%emt 0:00:55]} Bd6 {[%emt 0:00:44]} 5. Bb2 {[%emt 0:00:33]} b6 {[%emt 0:01:55]} 6. d4 {[%emt 0:04:50]} O-O {[%emt 0:00:58]} 7. Nbd2 {[%emt 0:01:42]} Bb7 {[%emt 0:01:21]} 8. Bd3 {[%emt 0:01:05]} Nbd7 {[%emt 0:01:28]} 9. O-O {[%emt 0:01:11]} Ne4 {[%emt 0:01:18]} 10. Rc1 {[%emt 0:04:26]} f5 {[%emt 0:04:05]} 11. Ne5 {[%emt 0:06:39]} Bxe5 {[%emt 0:06:56]} 12. dxe5 {[%emt 0:01:39]} Nxd2 {[%emt 0:02:41]} 13. Qxd2 {[%emt 0:00:36]} Nc5 {[%emt 0:00:47]} 14. Be2 {[%emt 0:09:56]} dxc4 {[%emt 0:00:56]} 15. Qxd8 {[%emt 0:00:09]} Rfxd8 {[%emt 0:00:30]} 16. Bxc4 {[%emt 0:00:08]} Ba6 {[%emt 0:00:30]} 17. Bd4 {[%emt 0:10:52]} Bxc4 {[%emt 0:03:04]} 18. Rxc4 {[%emt 0:05:35]} Na6 {[%emt 0:01:15]} 19. Rc6 {[%emt 0:00:51]} Kf7 {[%emt 0:01:56]} 20. g4 {[%emt 0:17:05]} g6 {[%emt 0:02:33]} 21. gxf5 {[%emt 0:00:59]} gxf5 {[%emt 0:00:31]} 22. b4 {[%emt 0:04:23]} Rd7 {[%emt 0:08:33]} 23. a3 {[%emt 0:05:10]} Rg8+ {[%emt 0:06:16]} 24. Kh1 {[%emt 0:00:05]} Nb8 {[%emt 0:00:50]} 25. Rc4 {[%emt 0:00:21]} c6 {[%emt 0:08:43]} 26. a4 {[%emt 0:00:08]} Rc8 {[%emt 0:06:45]} 27. Rfc1 {[%emt 0:00:38]} Rdc7 {[%emt 0:02:23]} 28. Bb2 {[%emt 0:03:16]} Rg8 {[%emt 0:07:11]} 29. Rh4 {[%emt 0:02:07]} Rg7 {[%emt 0:01:14]} 30. Rh6 {[%emt 0:01:46]} Nd7 {[%emt 0:02:41]} 31. f4 {[%emt 0:01:04]} Nf8 {[%emt 0:03:44]} 32. Rd1 {[%emt 0:05:42]} Rg6 {[%emt 0:01:11]} 33. Rh5 {[%emt 0:00:12]} Ke7 {[%emt 0:00:46]} 34. Rf1 {[%emt 0:01:43]} Rd7 {[%emt 0:05:40]} 35. Bd4 {[%emt 0:02:22]} Kd8 {[%emt 0:02:07]} 36. a5 {[%emt 0:01:06]} Kc7 {[%emt 0:02:12]} 37. Ra1 {[%emt 0:00:15]} Kb7 {[%emt 0:00:45]} 38. a6+ {[%emt 0:00:05]} Kc7 {[%emt 0:01:15]} 39. Rc1 {[%emt 0:01:15]} Rd5 {[%emt 0:02:42]} 40. Rh3 {[%emt 0:01:57]} Rb5 {[%emt 0:02:15]} 41. Bc3 {[%emt 0:32:10]} Rd5 {[%emt 0:35:13]} 42. e4 {[%emt 0:02:02]} fxe4 {[%emt 0:00:00]} 43. Re3 {[%emt 0:00:00]} Rg4 {[%emt 0:00:00]} 44. Rxe4 {[%emt 0:00:00]} Ng6 {[%emt 0:00:00]} 45. Rf1 {[%emt 0:00:00]} Rd3 {[%emt 0:00:00]} 46. Bd4 {[%emt 0:00:00]} Ne7 {[%emt 0:00:00]} 47. Bg1 {[%emt 0:00:00]} Nd5 {[%emt 0:00:00]} 48. Rc4 {[%emt 0:00:00]} Rb3 {[%emt 0:00:00]} 49. Rfc1 {[%emt 0:00:00]} Nxb4 {[%emt 0:00:00]} 50. f5 {[%emt 0:00:00]} exf5 {[%emt 0:00:00]} 51. Rxg4 {[%emt 0:00:00]} fxg4 {[%emt 0:00:00]} 52. e6 {[%emt 0:00:00]} Kd6 {[%emt 0:00:26]} 53. Re1 {[%emt 0:00:21]} Nd5 {[%emt 0:00:50]} 54. Bf2 {[%emt 0:00:29]} Rf3 {[%emt 0:05:26]} 55. Bg3+ {[%emt 0:00:51]} Ke7 {[%emt 0:00:20]} 56. Bb8 {[%emt 0:03:57]} Ra3 {[%emt 0:00:39]} 57. Re4 {[%emt 0:02:50]} Rxa6 {[%emt 0:01:36]} 58. Bg3 {[%emt 0:00:02]} Ra1+ {[%emt 0:01:28]} 59. Kg2 {[%emt 0:00:05]} Ra2+ {[%emt 0:00:20]} 60. Kg1 {[%emt 0:00:32]} Rd2 {[%emt 0:01:42]} 61. Bh4+ {[%emt 0:00:11]} Kd6 {[%emt 0:00:33]} 62. Bg3+ {[%emt 0:01:37]} Kc5 {[%emt 0:00:36]} 63. e7 {[%emt 0:00:49]} Nxe7 {[%emt 0:00:05]} 64. Rxe7 {[%emt 0:00:03]} h5 {[%emt 0:00:44]} 65. Rxa7 {[%emt 0:00:20]} b5 {[%emt 0:00:35]} 66. Bf2+ {[%emt 0:00:31]} Kc4 {[%emt 0:00:20]} 67. Rc7 {[%emt 0:00:38]} Rd6 {[%emt 0:00:21]} 68. Rf7 {[%emt 0:01:11]} Rd5 {[%emt 0:00:33]} 69. Be1 {[%emt 0:00:41]} c5 {[%emt 0:00:19]} 70. Kf2 {[%emt 0:00:25]} b4 {[%emt 0:00:26]} 71. Rb7 {[%emt 0:00:52]} Kb3 {[%emt 0:00:50]} 72. Ke2 {[%emt 0:00:34]} Rd4 {[%emt 0:00:48]} 73. Bh4 {[%emt 0:00:11]} c4 {[%emt 0:00:21]} 74. Be7 {[%emt 0:00:14]} Re4+ {[%emt 0:00:23]} 75. Kd1 {[%emt 0:00:07]} c3 {[%emt 0:00:14]} 76. Bg5 {[%emt 0:01:01]} Kb2 {[%emt 0:00:39]} 77. Bc1+ {[%emt 0:00:14]} Kb1 {[%emt 0:00:54]} 78. Be3 {[%emt 0:00:48]} c2+ {[%emt 0:00:16]} 0-1

[Event "Deloitte NED-ch Women 2019"]
[Site "Amsterdam"]
[Date "2019.07.06"]
[Round "6.6"]
[White "Van Foreest, Machteld"]
[Black "Van Weersel, Arlette"]
[Result "0-1"]
[ECO "B01"]
[WhiteElo "2058"]
[BlackElo "2176"]
[Annotator "NA"]
[PlyCount "102"]
[EventDate "2019.07.01"]
[EventType "tourn"]
[EventCountry "NED"]
[SourceTitle "playchess.com"]
[Source "ChessBase"]
[SourceQuality "1"]
[TimeControl "40/5400+30:1800+30"]

1. e4 {[%emt 0:00:00]} d5 {[%emt 0:00:00]} 2. exd5 {[%emt 0:00:00]} Qxd5 {[%emt 0:00:00]} 3. Nc3 {[%emt 0:00:00]} Qd6 {[%emt 0:00:06]} 4. d4 {[%emt 0:03:43]} Nf6 {[%emt 0:00:44]} 5. Nf3 {[%emt 0:00:59]} c6 {[%emt 0:00:24]} 6. Be3 {[%emt 0:01:38]} Bf5 {[%emt 0:06:38]} 7. Qd2 {[%emt 0:02:41]} e6 {[%emt 0:00:53]} 8. Nh4 {[%emt 0:07:04]} Bg6 {[%emt 0:00:26]} 9. Nxg6 {[%emt 0:00:40]} hxg6 {[%emt 0:00:14]} 10. O-O-O {[%emt 0:11:09]} Qc7 {[%emt 0:09:25]} 11. Bf4 {[%emt 0:08:13]} Bd6 {[%emt 0:01:32]} 12. Bxd6 {[%emt 0:01:40]} Qxd6 {[%emt 0:00:05]} 13. h4 {[%emt 0:11:11]} Nbd7 {[%emt 0:02:46]} 14. Be2 {[%emt 0:02:17]} Nb6 {[%emt 0:04:01]} 15. g4 {[%emt 0:05:47]} O-O-O {[%emt 0:04:51]} 16. h5 {[%emt 0:11:15]} gxh5 {[%emt 0:06:22]} 17. gxh5 {[%emt 0:02:38]} e5 {[%emt 0:04:34]} 18. d5 {[%emt 0:10:15]} Nbxd5 {[%emt 0:03:41]} 19. Qg5 {[%emt 0:01:37]} Qe7 {[%emt 0:06:00]} 20. Qf5+ {[%emt 0:04:14]} Kb8 {[%emt 0:12:02]} 21. Nxd5 {[%emt 0:01:34]} Nxd5 {[%emt 0:02:05]} 22. Bc4 {[%emt 0:02:09]} f6 {[%emt 0:05:44]} 23. Bxd5 {[%emt 0:01:08]} Rxd5 {[%emt 0:02:53]} 24. Rxd5 {[%emt 0:00:52]} cxd5 {[%emt 0:00:06]} 25. f4 {[%emt 0:02:36]} Kc7 {[%emt 0:19:08]} 26. Rd1 {[%emt 0:02:11]} Rd8 {[%emt 0:00:44]} 27. Re1 {[%emt 0:00:37]} e4 {[%emt 0:02:10]} 28. c3 {[%emt 0:01:56]} Rd7 {[%emt 0:02:16]} 29. Qg6 {[%emt 0:02:12]} Qd6 {[%emt 0:00:27]} 30. Qg4 {[%emt 0:00:32]} Qc5 {[%emt 0:01:26]} 31. Qg3 {[%emt 0:00:25]} f5 {[%emt 0:01:03]} 32. Rd1 {[%emt 0:01:32]} d4 {[%emt 0:01:08]} 33. Qg1 {[%emt 0:01:04]} e3 {[%emt 0:00:29]} 34. Qf1 {[%emt 0:00:30]} Re7 {[%emt 0:01:15]} 35. Rxd4 {[%emt 0:00:35]} e2 {[%emt 0:00:28]} 36. Qe1 {[%emt 0:00:03]} Qc6 {[%emt 0:00:18]} 37. Kd2 {[%emt 0:00:53]} Qf3 {[%emt 0:00:30]} 38. Rc4+ {[%emt 0:00:28]} Kb8 {[%emt 0:00:12]} 39. Rd4 {[%emt 0:00:03]} Qxh5 {[%emt 0:01:07]} 40. Rd3 {[%emt 0:00:56]} Qg4 {[%emt 0:00:32]} 41. Rd4 {[%emt 0:30:06]} g5 {[%emt 0:30:33]} 42. Kc2 {[%emt 0:00:48]} Qg2 {[%emt 0:00:00]} 43. fxg5 {[%emt 0:00:00]} Qxg5 {[%emt 0:00:00]} 44. Kb3 {[%emt 0:00:00]} Re8 {[%emt 0:00:00]} 45. Rd7 {[%emt 0:00:00]} f4 {[%emt 0:00:00]} 46. a4 {[%emt 0:00:00]} Qf5 {[%emt 0:00:00]} 47. Rd4 {[%emt 0:01:16]} Qf7+ {[%emt 0:00:00]} 48. Ka3 {[%emt 0:01:35]} f3 {[%emt 0:00:08]} 49. b4 {[%emt 0:00:53]} f2 {[%emt 0:00:56]} 50. Qd2 {[%emt 0:00:07]} Qc7 {[%emt 0:00:28]} 51. Rd7 {[%emt 0:00:48]} e1=Q {[%emt 0:00:35]} 0-1

[Event "Deloitte NED-ch Women 2019"]
[Site "Amsterdam"]
[Date "2019.07.06"]
[Round "6.8"]
[White "Roebers, Eline"]
[Black "Keetman, Maaike"]
[Result "0-1"]
[ECO "C16"]
[WhiteElo "2069"]
[BlackElo "2153"]
[Annotator "NA"]
[PlyCount "104"]
[EventDate "2019.07.01"]
[EventType "tourn"]
[EventCountry "NED"]
[SourceTitle "playchess.com"]
[Source "ChessBase"]
[SourceQuality "1"]
[TimeControl "40/5400+30:1800+30"]

1. e4 {[%emt 0:00:00]} e6 {[%emt 0:00:00]} 2. d4 {[%emt 0:00:00]} d5 {[%emt 0:00:00]} 3. Nc3 {[%emt 0:00:00]} Bb4 {[%emt 0:00:00]} 4. e5 {[%emt 0:00:37]} Ne7 {[%emt 0:00:03]} 5. a3 {[%emt 0:00:51]} Bxc3+ {[%emt 0:00:06]} 6. bxc3 {[%emt 0:00:05]} b6 {[%emt 0:00:07]} 7. Qg4 {[%emt 0:04:04]} Ng6 {[%emt 0:00:13]} 8. h4 {[%emt 0:02:23]} h5 {[%emt 0:00:08]} 9. Qd1 {[%emt 0:00:54]} c5 {[%emt 0:00:30]} 10. Be2 {[%emt 0:02:58]} Nxh4 {[%emt 0:09:32]} 11. g3 {[%emt 0:05:44]} Nf5 {[%emt 0:01:11]} 12. Rxh5 {[%emt 0:03:01]} Rxh5 {[%emt 0:02:11]} 13. Bxh5 {[%emt 0:00:06]} Qc7 {[%emt 0:02:59]} 14. Ne2 {[%emt 0:10:29]} Ba6 {[%emt 0:06:12]} 15. Bb2 {[%emt 0:08:48]} Nc6 {[%emt 0:02:13]} 16. Nf4 {[%emt 0:06:37]} O-O-O {[%emt 0:04:01]} 17. Qd2 {[%emt 0:12:40]} Na5 {[%emt 0:08:19]} 18. Nd3 {[%emt 0:09:21]} Nc4 {[%emt 0:06:55]} 19. Qc1 {[%emt 0:01:56]} Rh8 {[%emt 0:08:21]} 20. Bf3 {[%emt 0:01:04]} Nxb2 {[%emt 0:07:42]} 21. Qxb2 {[%emt 0:00:22]} cxd4 {[%emt 0:00:06]} 22. cxd4 {[%emt 0:01:20]} Qc4 {[%emt 0:00:07]} 23. O-O-O {[%emt 0:07:15]} Nxd4 {[%emt 0:06:32]} 24. Ne1 {[%emt 0:07:15]} Nc6 {[%emt 0:08:07]} 25. Ng2 {[%emt 0:02:22]} Kb8 {[%emt 0:02:00]} 26. Ne3 {[%emt 0:02:13]} Qc5 {[%emt 0:00:14]} 27. Kb1 {[%emt 0:02:02]} Rc8 {[%emt 0:05:31]} 28. Ng4 {[%emt 0:02:03]} Rd8 {[%emt 0:05:46]} 29. Rd2 {[%emt 0:03:53]} Na5 {[%emt 0:01:37]} 30. Ne3 {[%emt 0:00:31]} d4 {[%emt 0:02:08]} 31. c3 {[%emt 0:01:01]} d3 {[%emt 0:04:25]} 32. Qb4 {[%emt 0:02:09]} Qxe5 {[%emt 0:01:11]} 33. Ng4 {[%emt 0:00:40]} Qc5 {[%emt 0:00:54]} 34. Qf4+ {[%emt 0:00:27]} Qc7 {[%emt 0:00:08]} 35. Ne5 {[%emt 0:00:51]} f6 {[%emt 0:01:04]} 36. Ng6 {[%emt 0:00:37]} Nc4 {[%emt 0:02:02]} 37. Qxc7+ {[%emt 0:00:38]} Kxc7 {[%emt 0:00:05]} 38. Rd1 {[%emt 0:00:07]} Nxa3+ {[%emt 0:00:39]} 39. Kb2 {[%emt 0:00:09]} Nc4+ {[%emt 0:00:10]} 40. Kb3 {[%emt 0:00:03]} e5 {[%emt 0:03:13]} 41. Be4 {[%emt 0:30:32]} Na5+ {[%emt 0:33:02]} 42. Kb4 {[%emt 0:00:22]} Nb7 {[%emt 0:00:42]} 43. Ne7 {[%emt 0:00:45]} Nc5 {[%emt 0:00:26]} 44. Bf3 {[%emt 0:00:27]} e4 {[%emt 0:00:00]} 45. Bg4 {[%emt 0:00:00]} d2 {[%emt 0:00:00]} 46. Ka3 {[%emt 0:00:00]} Bb5 {[%emt 0:00:00]} 47. Rb1 {[%emt 0:00:00]} Ba4 {[%emt 0:00:00]} 48. Bd1 {[%emt 0:00:00]} Bxd1 {[%emt 0:00:00]} 49. Rxd1 {[%emt 0:00:00]} Rd3 {[%emt 0:00:00]} 50. Kb4 {[%emt 0:00:00]} a5+ {[%emt 0:00:00]} 51. Kc4 {[%emt 0:00:00]} Na4 {[%emt 0:00:00]} 52. Kb3 {[%emt 0:00:00]} Nxc3 {[%emt 0:00:00]} 0-1

[Event "Deloitte NED-ch Women 2019"]
[Site "Amsterdam"]
[Date "2019.07.07"]
[Round "7.3"]
[White "Ratsma, Rosa"]
[Black "Van Foreest, Machteld"]
[Result "0-1"]
[ECO "C63"]
[WhiteElo "2282"]
[BlackElo "2058"]
[Annotator "NA"]
[PlyCount "182"]
[EventDate "2019.07.01"]
[EventType "tourn"]
[EventCountry "NED"]
[SourceTitle "playchess.com"]
[Source "ChessBase"]
[SourceQuality "1"]
[TimeControl "40/5400+30:1800+30"]

1. e4 {[%emt 0:00:00]} e5 {[%emt 0:00:00]} 2. Nf3 {[%emt 0:00:00]} Nc6 {[%emt 0:00:00]} 3. Bb5 {[%emt 0:00:00]} f5 {[%emt 0:00:00]} 4. d3 {[%emt 0:00:33]} fxe4 {[%emt 0:00:03]} 5. dxe4 {[%emt 0:00:08]} Nf6 {[%emt 0:00:12]} 6. O-O {[%emt 0:00:24]} d6 {[%emt 0:00:14]} 7. Bc4 {[%emt 0:03:53]} Bg4 {[%emt 0:08:55]} 8. h3 {[%emt 0:03:26]} Bh5 {[%emt 0:04:13]} 9. Nc3 {[%emt 0:01:50]} Qd7 {[%emt 0:04:31]} 10. Be3 {[%emt 0:02:09]} h6 {[%emt 0:12:32]} 11. b4 {[%emt 0:13:27]} g5 {[%emt 0:12:18]} 12. Nd5 {[%emt 0:25:31]} Bg7 {[%emt 0:06:47]} 13. c3 {[%emt 0:10:03]} Nxd5 {[%emt 0:05:10]} 14. Bxd5 {[%emt 0:04:41]} a6 {[%emt 0:14:18]} 15. Rb1 {[%emt 0:04:04]} Bf7 {[%emt 0:09:46]} 16. Nd2 {[%emt 0:02:21]} O-O {[%emt 0:01:23]} 17. Qg4 {[%emt 0:01:36]} Qxg4 {[%emt 0:05:05]} 18. Bxf7+ {[%emt 0:04:05]} Kxf7 {[%emt 0:02:55]} 19. hxg4 {[%emt 0:00:07]} Rfd8 {[%emt 0:01:52]} 20. Rfd1 {[%emt 0:02:08]} b5 {[%emt 0:01:52]} 21. Nf1 {[%emt 0:03:01]} Ne7 {[%emt 0:01:55]} 22. Ng3 {[%emt 0:00:56]} Rd7 {[%emt 0:01:45]} 23. Rd3 {[%emt 0:01:58]} Rad8 {[%emt 0:01:14]} 24. Rbd1 {[%emt 0:00:33]} Ke8 {[%emt 0:01:05]} 25. f3 {[%emt 0:03:37]} d5 {[%emt 0:02:19]} 26. Bc5 {[%emt 0:00:36]} dxe4 {[%emt 0:01:24]} 27. Rxd7 {[%emt 0:00:25]} Rxd7 {[%emt 0:00:01]} 28. Rxd7 {[%emt 0:00:13]} Kxd7 {[%emt 0:00:04]} 29. fxe4 {[%emt 0:01:18]} Bf8 {[%emt 0:01:52]} 30. Kf2 {[%emt 0:02:32]} Ng6 {[%emt 0:00:16]} 31. Bxf8 {[%emt 0:01:10]} Nxf8 {[%emt 0:00:02]} 32. Nf5 {[%emt 0:00:11]} Ke6 {[%emt 0:00:42]} 33. Nxh6 {[%emt 0:01:49]} Nd7 {[%emt 0:00:23]} 34. Nf5 {[%emt 0:00:28]} Nb6 {[%emt 0:00:52]} 35. Ne3 {[%emt 0:00:43]} c6 {[%emt 0:00:53]} 36. Ke2 {[%emt 0:00:35]} Nc4 {[%emt 0:00:29]} 37. Nd1 {[%emt 0:02:29]} a5 {[%emt 0:00:34]} 38. bxa5 {[%emt 0:00:37]} Nxa5 {[%emt 0:00:03]} 39. Kd3 {[%emt 0:01:47]} Nb7 {[%emt 0:00:44]} 40. Nb2 {[%emt 0:01:40]} Nc5+ {[%emt 0:00:43]} 41. Ke3 {[%emt 0:31:02]} Na6 {[%emt 0:02:26]} 42. a3 {[%emt 0:00:00]} Nc5 {[%emt 0:02:22]} 43. c4 {[%emt 0:00:00]} Na4 {[%emt 0:02:24]} 44. Nd1 {[%emt 0:00:00]} bxc4 {[%emt 0:02:36]} 45. Kd2 {[%emt 0:00:00]} Nc5 {[%emt 0:01:18]} 46. Nf2 {[%emt 0:00:00]} Na4 {[%emt 0:00:19]} 47. Kc2 {[%emt 0:00:00]} Ke7 {[%emt 0:03:17]} 48. Nd1 {[%emt 0:00:00]} Nc5 {[%emt 0:01:03]} 49. Kc3 {[%emt 0:00:00]} Nxe4+ {[%emt 0:00:55]} 50. Kxc4 {[%emt 0:00:00]} Kd6 {[%emt 0:00:59]} 51. Ne3 {[%emt 0:00:00]} Nd2+ {[%emt 0:01:43]} 52. Kb4 {[%emt 0:00:00]} c5+ {[%emt 0:01:15]} 53. Kc3 {[%emt 0:00:00]} Ne4+ {[%emt 0:05:18]} 54. Kd3 {[%emt 0:00:00]} Nf6 {[%emt 0:00:46]} 55. a4 {[%emt 0:01:35]} e4+ {[%emt 0:02:33]} 56. Kc4 {[%emt 0:01:01]} Kc6 {[%emt 0:00:28]} 57. Kb3 {[%emt 0:03:43]} Nd5 {[%emt 0:01:20]} 58. Nc4 {[%emt 0:01:01]} Nb6 {[%emt 0:01:47]} 59. Ne5+ {[%emt 0:01:48]} Kd5 {[%emt 0:00:56]} 60. Nf7 {[%emt 0:00:51]} c4+ {[%emt 0:01:54]} 61. Kb4 {[%emt 0:01:25]} e3 {[%emt 0:02:39]} 62. Nxg5 {[%emt 0:00:13]} Kd4 {[%emt 0:02:27]} 63. Nf3+ {[%emt 0:00:26]} Kd3 {[%emt 0:00:33]} 64. Ne5+ {[%emt 0:00:37]} Kd4 {[%emt 0:00:36]} 65. Nf3+ {[%emt 0:00:24]} Kd3 {[%emt 0:00:05]} 66. Ne5+ {[%emt 0:01:12]} Ke4 {[%emt 0:00:55]} 67. Nf3 {[%emt 0:00:14]} Kd3 {[%emt 0:00:29]} 68. Ne5+ {[%emt 0:00:34]} Ke4 {[%emt 0:00:15]} 69. Nf3 {[%emt 0:00:25]} Kd3 {[%emt 0:00:38]} 70. g5 {[%emt 0:00:41]} c3 {[%emt 0:00:32]} 71. Kb3 {[%emt 0:00:21]} Nxa4 {[%emt 0:00:29]} 72. g6 {[%emt 0:00:42]} Nc5+ {[%emt 0:00:09]} 73. Kb4 {[%emt 0:00:08]} Ne6 {[%emt 0:00:30]} 74. Kb3 {[%emt 0:00:28]} e2 {[%emt 0:01:02]} 75. Ne1+ {[%emt 0:00:17]} Kd2 {[%emt 0:00:06]} 76. Nf3+ {[%emt 0:00:05]} Kd3 {[%emt 0:00:07]} 77. Ne1+ {[%emt 0:00:16]} Kd2 {[%emt 0:00:03]} 78. Nf3+ {[%emt 0:00:04]} Kd1 {[%emt 0:00:47]} 79. Kxc3 {[%emt 0:00:18]} Ng5 {[%emt 0:00:05]} 80. Ne1 {[%emt 0:00:38]} Kxe1 {[%emt 0:00:12]} 81. g7 {[%emt 0:00:19]} Ne4+ {[%emt 0:00:02]} 82. Kd4 {[%emt 0:00:29]} Nf6 {[%emt 0:00:06]} 83. Ke5 {[%emt 0:00:15]} Ng8 {[%emt 0:00:06]} 84. Ke6 {[%emt 0:00:18]} Kf2 {[%emt 0:00:11]} 85. Kf7 {[%emt 0:00:09]} e1=Q {[%emt 0:00:44]} 86. Kxg8 {[%emt 0:00:13]} Qe8+ {[%emt 0:00:02]} 87. Kh7 {[%emt 0:00:19]} Qh5+ {[%emt 0:00:02]} 88. Kg8 {[%emt 0:00:06]} Kg3 {[%emt 0:00:02]} 89. Kf8 {[%emt 0:00:09]} Qf5+ {[%emt 0:00:03]} 90. Ke7 {[%emt 0:00:14]} Qg6 {[%emt 0:00:03]} 91. Kf8 {[%emt 0:00:05]} Qf6+ {[%emt 0:00:03]} 0-1

[Event "Deloitte NED-ch Women 2019"]
[Site "Amsterdam"]
[Date "2019.07.07"]
[Round "7.5"]
[White "Van Weersel, Arlette"]
[Black "Paulet, Iozefina"]
[Result "0-1"]
[ECO "C01"]
[WhiteElo "2176"]
[BlackElo "2262"]
[Annotator "NA"]
[PlyCount "142"]
[EventDate "2019.07.01"]
[EventType "tourn"]
[EventCountry "NED"]
[SourceTitle "playchess.com"]
[Source "ChessBase"]
[SourceQuality "1"]
[TimeControl "40/5400+30:1800+30"]

1. e4 {[%emt 0:09:17]} e6 {[%emt 0:00:00]} 2. d4 {[%emt 0:00:08]} d5 {[%emt 0:00:00]} 3. exd5 {[%emt 0:00:10]} exd5 {[%emt 0:00:00]} 4. Nf3 {[%emt 0:00:06]} Bd6 {[%emt 0:00:00]} 5. c4 {[%emt 0:00:41]} Nf6 {[%emt 0:00:00]} 6. c5 {[%emt 0:03:14]} Be7 {[%emt 0:00:00]} 7. Bd3 {[%emt 0:00:07]} O-O {[%emt 0:00:06]} 8. O-O {[%emt 0:00:15]} b6 {[%emt 0:00:02]} 9. Be3 {[%emt 0:01:12]} Bg4 {[%emt 0:20:48]} 10. Nbd2 {[%emt 0:05:21]} bxc5 {[%emt 0:04:06]} 11. dxc5 {[%emt 0:01:02]} a5 {[%emt 0:00:04]} 12. Rc1 {[%emt 0:11:10]} c6 {[%emt 0:06:10]} 13. Qa4 {[%emt 0:06:26]} Na6 {[%emt 0:05:40]} 14. Ne5 {[%emt 0:18:20]} Bd7 {[%emt 0:04:41]} 15. a3 {[%emt 0:01:38]} Qc7 {[%emt 0:06:44]} 16. Ndf3 {[%emt 0:02:11]} Rfe8 {[%emt 0:00:21]} 17. Nxd7 {[%emt 0:07:48]} Nxd7 {[%emt 0:00:15]} 18. Bb1 {[%emt 0:07:59]} g6 {[%emt 0:05:28]} 19. Nd4 {[%emt 0:07:18]} Rec8 {[%emt 0:05:01]} 20. Nb3 {[%emt 0:02:15]} Qe5 {[%emt 0:05:19]} 21. Rfe1 {[%emt 0:03:23]} Qh5 {[%emt 0:00:07]} 22. Bd3 {[%emt 0:05:19]} Bf8 {[%emt 0:10:39]} 23. Be2 {[%emt 0:00:49]} Qe5 {[%emt 0:00:05]} 24. Bd4 {[%emt 0:03:49]} Qf4 {[%emt 0:05:26]} 25. g3 {[%emt 0:00:27]} Qf5 {[%emt 0:00:42]} 26. Be3 {[%emt 0:01:00]} h5 {[%emt 0:01:52]} 27. Qd4 {[%emt 0:00:57]} a4 {[%emt 0:03:42]} 28. Bd3 {[%emt 0:00:44]} Qe5 {[%emt 0:05:59]} 29. Bxa6 {[%emt 0:00:33]} Qxd4 {[%emt 0:00:53]} 30. Nxd4 {[%emt 0:00:23]} Rxa6 {[%emt 0:00:03]} 31. Rc2 {[%emt 0:00:52]} Bxc5 {[%emt 0:03:27]} 32. Rec1 {[%emt 0:00:16]} Bxd4 {[%emt 0:00:04]} 33. Bxd4 {[%emt 0:00:07]} c5 {[%emt 0:00:26]} 34. Be3 {[%emt 0:00:05]} Rac6 {[%emt 0:00:12]} 35. Rd1 {[%emt 0:01:27]} d4 {[%emt 0:01:18]} 36. Bf4 {[%emt 0:00:05]} Nb6 {[%emt 0:00:51]} 37. Kf1 {[%emt 0:00:27]} f6 {[%emt 0:01:05]} 38. Re2 {[%emt 0:00:31]} g5 {[%emt 0:02:47]} 39. Bc1 {[%emt 0:00:06]} Kf7 {[%emt 0:00:24]} 40. h3 {[%emt 0:00:14]} Re8 {[%emt 0:02:45]} 41. Rc2 {[%emt 0:30:09]} Ree6 {[%emt 0:30:41]} 42. Rd3 {[%emt 0:00:00]} Red6 {[%emt 0:00:00]} 43. f4 {[%emt 0:00:00]} c4 {[%emt 0:00:00]} 44. Rd1 {[%emt 0:00:00]} d3 {[%emt 0:05:02]} 45. Rh2 {[%emt 0:00:00]} Kg6 {[%emt 0:00:00]} 46. Bd2 {[%emt 0:00:00]} Nd5 {[%emt 0:00:00]} 47. fxg5 {[%emt 0:00:00]} fxg5 {[%emt 0:00:00]} 48. Rc1 {[%emt 0:00:00]} Rf6+ {[%emt 0:00:00]} 49. Kg1 {[%emt 0:00:00]} Rf3 {[%emt 0:00:00]} 50. Rg2 {[%emt 0:00:00]} Rf7 {[%emt 0:00:00]} 51. Re1 {[%emt 0:01:07]} Re7 {[%emt 0:00:00]} 52. Rc1 {[%emt 0:00:00]} Rb7 {[%emt 0:00:00]} 53. Be1 {[%emt 0:00:00]} Ne3 {[%emt 0:00:00]} 54. Rf2 {[%emt 0:00:00]} Nf5 {[%emt 0:00:36]} 55. Kg2 {[%emt 0:06:01]} Nd4 {[%emt 0:00:11]} 56. Bb4 {[%emt 0:00:18]} Rf7 {[%emt 0:01:26]} 57. Rxf7 {[%emt 0:02:06]} Kxf7 {[%emt 0:00:03]} 58. Kf2 {[%emt 0:01:08]} Ke6 {[%emt 0:04:30]} 59. Re1+ {[%emt 0:00:50]} Ne2 {[%emt 0:00:06]} 60. Kf3 {[%emt 0:00:33]} Kd5 {[%emt 0:00:10]} 61. g4 {[%emt 0:00:34]} Rf6+ {[%emt 0:00:21]} 62. Ke3 {[%emt 0:00:22]} Nd4 {[%emt 0:02:15]} 63. Rg1 {[%emt 0:00:43]} Rf3+ {[%emt 0:00:17]} 64. Kd2 {[%emt 0:00:20]} Rf2+ {[%emt 0:00:54]} 65. Ke1 {[%emt 0:00:05]} Rxb2 {[%emt 0:00:30]} 66. gxh5 {[%emt 0:00:37]} Nf3+ {[%emt 0:00:20]} 67. Kf1 {[%emt 0:00:07]} Rb1+ {[%emt 0:01:30]} 68. Kf2 {[%emt 0:00:07]} Nxg1 {[%emt 0:00:13]} 69. Kg2 {[%emt 0:01:45]} Ne2 {[%emt 0:00:16]} 70. h6 {[%emt 0:00:11]} Nf4+ {[%emt 0:00:03]} 71. Kf3 {[%emt 0:00:26]} Rh1 {[%emt 0:00:05]} 0-1